Workbook

Sheet Feuil1
A1: Type: NTC 10k±1% 3950 | C1: R (θ) = | D1: 10000 | E1: R1 = | F1: 3000 | G1: Tmin = | H1: 20
A2: B-constant : 3950K -/+ 1% | C2: β = | D2: 3950 | E2: θ = | F2: 25 | G2: Tmax = | H2: 80 | I2: =INT(A5)& "°C - "&INT(A105)&"°C" -> 20°C - 80°C | J2: ="Mileu de gamme "&INT(A55)& "°C : " -> Mileu de gamme 50°C : | K2: =B55 -> 3588 | L2: Ohms | M2: 100 % de la gamme / ordre 3
C3: Sortie diviseur | I3: Macros : | J3: Ctrl+m : 5ème ordre | L3: Ctrl+l : ordre 3 | N3: Ctrl+k : ordre 1
A4: T | B4: RCTN | C4: V | D4: Sensibilité | E4: Tmodèle | F4: Résidus | G4: Normalisé | J4: T = a3*V^3 + a2*V^2 + a1*V^1 + a0 | K4: =INDEX(LINEST(A5:A105,C5:C105^{1,2,3},,1),1,1) -> 1.438835106 | L4: =INDEX(LINEST(A5:A105,C5:C105^{1,2,3},,1),1,2) -> -9.164835857 | M4: =INDEX(LINEST(A5:A105,C5:C105^{1,2,3},,1),1,3) -> 40.57294519 | N4: =INDEX(LINEST(A5:A105,C5:C105^{1,2,3},,1),1,4) -> -11.8512828
A5: =Tmin -> 20 | B5: =Res*EXP(B*(1/(A5+273.15)-1/(teta+273.15))) -> 12535 | C5: =Rdiv/(Rdiv+B5)*5 -> 0.966 | D5: en mV/°C | E5: =a5_*C5^5 + a4_*C5^4 +a3_*C5^3 +a2_*C5^2 +a1_*C5+a0_ -> 20.01 | F5: =E5-A5 -> 0.01 | G5: =F5/Sresidus -> 4.2 | K5: a3_ | L5: a2_ | M5: a1_ | N5: a0_
A6: =A5+(Tmax-Tmin)/100 -> 20.6 | B6: =Res*EXP(B*(1/(A6+273.15)-1/(teta+273.15))) -> 12195 | C6: 0.987 | D6: =(C6-C5)*1000 -> 22 | E6: 20.60 | F6: =E6-A6 -> 0.00 | G6: =F6/Sresidus -> 2.3 | J6: Ctrl+m | L6: Ctrl+l | N6: Ctrl+k
A7: 21.2 | B7: 11865 | C7: 1.009 | D7: =(C7-C6)*1000 -> 22 | E7: 21.20 | F7: 0.00 | G7: =F7/Sresidus -> 0.8 | J7: DROITEREG(A5:A105;C5:C105^{1.2.3.4.5};VRAI;VRAI) | L7: DROITEREG(A5:A105;C5:C105^{1.2.3};VRAI;VRAI) | N7: DROITEREG(A5:A105;C5:C105;VRAI;VRAI)
A8: 21.8 | B8: 11546 | C8: 1.031 | D8: 22 | E8: 21.80 | F8: -0.00 | G8: =F8/Sresidus -> -0.4 | J8: =LINEST(A5:A105,C5:C105^{1,2,3,4,5},TRUE,TRUE) -> 0.1658361797 | K8: -1.869646186 | L8: 9.560858557 | M8: -26.07878565 | N8: 57.38001348 | O8: -18.20336205
A9: 22.4 | B9: 11236 | C9: 1.054 | D9: 22 | E9: 22.40 | F9: -0.00 | G9: =F9/Sresidus -> -1.2 | J9: 0.001275015612 | K9: 0.01431427559 | L9: 0.06213353297 | M9: 0.1298438165 | N9: 0.1301357365 | O9: 0.04988053937
A10: 23 | B10: 10936 | C10: 1.076 | D10: 23 | E10: 23.00 | F10: -0.00 | G10: =F10/Sresidus -> -1.7 | J10: 0.9999999906 | K10: 0.001751033469
A11: 23.6 | B11: 10645 | C11: 1.099 | D11: 23 | E11: 23.60 | F11: -0.00 | G11: =F11/Sresidus -> -2.0 | J11: 2015969223 | K11: 95
A12: 24.2 | B12: 10363 | C12: 1.123 | D12: 23 | E12: 24.20 | F12: -0.00 | G12: =F12/Sresidus -> -2.1
A13: 24.8 | B13: 10089 | C13: 1.146 | D13: 23 | E13: 24.80 | F13: -0.00 | G13: =F13/Sresidus -> -2.1
A14: 25.4 | B14: 9824 | C14: 1.170 | D14: 24 | E14: 25.40 | F14: -0.00 | G14: =F14/Sresidus -> -1.9
A15: 26 | B15: 9567 | C15: 1.194 | D15: 24 | E15: 26.00 | F15: -0.00 | G15: =F15/Sresidus -> -1.6
A16: 26.6 | B16: 9317 | C16: 1.218 | D16: 24 | E16: 26.60 | F16: -0.00 | G16: =F16/Sresidus -> -1.3
A17: 27.2 | B17: 9075 | C17: 1.242 | D17: 24 | E17: 27.20 | F17: -0.00 | G17: =F17/Sresidus -> -1.0
A18: 27.8 | B18: 8840 | C18: 1.267 | D18: 25 | E18: 27.80 | F18: -0.00 | G18: =F18/Sresidus -> -0.6
A19: 28.4 | B19: 8612 | C19: 1.292 | D19: 25 | E19: 28.40 | F19: -0.00 | G19: =F19/Sresidus -> -0.2
A20: 29 | B20: 8391 | C20: 1.317 | D20: 25 | E20: 29.00 | F20: 0.00 | G20: =F20/Sresidus -> 0.1
A21: 29.6 | B21: 8177 | C21: 1.342 | D21: 25 | E21: 29.60 | F21: 0.00 | G21: =F21/Sresidus -> 0.4
A22: 30.2 | B22: 7968 | C22: 1.368 | D22: 25 | E22: 30.20 | F22: 0.00 | G22: =F22/Sresidus -> 0.7
A23: 30.8 | B23: 7766 | C23: 1.393 | D23: 26 | E23: 30.80 | F23: 0.00 | G23: =F23/Sresidus -> 1.0
A24: 31.4 | B24: 7570 | C24: 1.419 | D24: 26 | E24: 31.40 | F24: 0.00 | G24: =F24/Sresidus -> 1.2
A25: 32 | B25: 7379 | C25: 1.445 | D25: 26 | E25: 32.00 | F25: 0.00 | G25: =F25/Sresidus -> 1.3
A26: 32.6 | B26: 7194 | C26: 1.471 | D26: 26 | E26: 32.60 | F26: 0.00 | G26: =F26/Sresidus -> 1.4
A27: 33.2 | B27: 7014 | C27: 1.498 | D27: 26 | E27: 33.20 | F27: 0.00 | G27: =F27/Sresidus -> 1.5
A28: 33.8 | B28: 6840 | C28: 1.524 | D28: 27 | E28: 33.80 | F28: 0.00 | G28: =F28/Sresidus -> 1.5
A29: 34.4 | B29: 6670 | C29: 1.551 | D29: 27 | E29: 34.40 | F29: 0.00 | G29: =F29/Sresidus -> 1.5
A30: 35 | B30: 6506 | C30: 1.578 | D30: 27 | E30: 35.00 | F30: 0.00 | G30: =F30/Sresidus -> 1.4
A31: 35.6 | B31: 6345 | C31: 1.605 | D31: 27 | E31: 35.60 | F31: 0.00 | G31: =F31/Sresidus -> 1.3
A32: 36.2 | B32: 6190 | C32: 1.632 | D32: 27 | E32: 36.20 | F32: 0.00 | G32: =F32/Sresidus -> 1.1
A33: 36.8 | B33: 6039 | C33: 1.660 | D33: 27 | E33: 36.80 | F33: 0.00 | G33: =F33/Sresidus -> 0.9
A34: 37.4 | B34: 5892 | C34: 1.687 | D34: 27 | E34: 37.40 | F34: 0.00 | G34: =F34/Sresidus -> 0.8
A35: 38 | B35: 5749 | C35: 1.714 | D35: 28 | E35: 38.00 | F35: 0.00 | G35: =F35/Sresidus -> 0.5
A36: 38.6 | B36: 5610 | C36: 1.742 | D36: 28 | E36: 38.60 | F36: 0.00 | G36: =F36/Sresidus -> 0.3
A37: 39.2 | B37: =Res*EXP(B*(1/(A37+273.15)-1/(teta+273.15))) -> 5476 | C37: =Rdiv/(Rdiv+B37)*5 -> 1.770 | D37: 28 | E37: =a5_*C37^5 + a4_*C37^4 +a3_*C37^3 +a2_*C37^2 +a1_*C37+a0_ -> 39.20 | F37: 0.00 | G37: =F37/Sresidus -> 0.1
A38: =A37+(Tmax-Tmin)/100 -> 39.8 | B38: 5344 | C38: 1.798 | D38: 28 | E38: 39.80 | F38: -0.00 | G38: =F38/Sresidus -> -0.1
A39: 40.4 | B39: 5217 | C39: 1.826 | D39: 28 | E39: 40.40 | F39: -0.00 | G39: =F39/Sresidus -> -0.3 | J39: Gamme 20°C - 80°C | N39: =CONCATENATE("Diagramme de Pareto (Gamme : ",Tmin,"°C - ",Tmax,"°C U=",MROUND(K47, 0.1),"°C)") -> Diagramme de Pareto (Gamme : 20°C - 80°C U=0,9°C)
A40: 41 | B40: 5093 | C40: 1.853 | D40: 28 | E40: 41.00 | F40: -0.00 | G40: =F40/Sresidus -> -0.5 | J40: Sensibilité min | K40: =MIN(D6:D105) -> 20 | L40: mV/°C
A41: 41.6 | B41: 4972 | C41: 1.882 | D41: 28 | E41: 41.60 | F41: -0.00 | G41: =F41/Sresidus -> -0.6 | J41: Résidus :
A42: 42.2 | B42: 4855 | C42: 1.910 | D42: 28 | E42: 42.20 | F42: -0.00 | G42: =F42/Sresidus -> -0.8 | J42: Moyenne résidus | K42: =AVERAGE(F5:F105) -> -0.00 | L42: °C
A43: 42.8 | B43: 4741 | C43: 1.938 | D43: 28 | E43: 42.80 | F43: -0.00 | G43: =F43/Sresidus -> -0.9 | J43: Ecart-type résidus | K43: =STDEV(F5:F105)*SQRT(100/97) -> 0.00 | L43: °C | M43: Sn-4 = Sey | O43: Variance | P43: Pareto
A44: 43.4 | B44: 4630 | C44: 1.966 | D44: 28 | E44: 43.40 | F44: -0.00 | G44: =F44/Sresidus -> -1.0 | J44: Umodèle | K44: =TINV(0.05,97)*K43 -> 0.00 | L44: °C | M44: Umodèle=2*Sn-4 | O44: =K44^2 -> 0.00 | P44: =O44/O$47 -> 0%
A45: 44 | B45: 4522 | C45: 1.994 | D45: 28 | E45: 44.00 | F45: -0.00 | G45: =F45/Sresidus -> -1.1 | J45: Uarduino (10mV) | K45: =10/K40 -> 0.50 | L45: °C | M45: Uarduino=ΔV/smin | O45: =K45^2 -> 0.25 | P45: =O45/O$47 -> 28%
A46: 44.6 | B46: 4417 | C46: 2.022 | D46: 28 | E46: 44.60 | F46: -0.00 | G46: =F46/Sresidus -> -1.1 | J46: Uctn | K46: =MAX(0.25+0.01*ABS(Tmax-25),0.25+0.01*ABS(Tmin-25)) -> 0.80 | L46: °C | M46: UCTN =0,01*abs(t-25)+0,25 | O46: =K46^2 -> 0.64 | P46: 72%
A47: 45.2 | B47: 4314 | C47: 2.051 | D47: 28 | E47: 45.20 | F47: -0.00 | G47: =F47/Sresidus -> -1.2 | J47: Utotal | K47: =SQRT(K44^2+K45^2+K46^2) -> 0.9 | L47: °C | O47: =SUM(O44:O46) -> 0.89 | P47: 100%
A48: 45.8 | B48: 4215 | C48: 2.079 | D48: 28 | E48: 45.80 | F48: -0.00 | G48: =F48/Sresidus -> -1.1
A49: 46.4 | B49: 4118 | C49: 2.107 | D49: 28 | E49: 46.40 | F49: -0.00 | G49: =F49/Sresidus -> -1.1 | J49: Mesure T= | K49: 24 | L49: °C
A50: 47 | B50: 4024 | C50: 2.136 | D50: 28 | E50: 47.00 | F50: -0.00 | G50: =F50/Sresidus -> -1.0 | J50: Umodèle | K50: =K44 -> 0.00 | L50: °C
A51: 47.6 | B51: 3932 | C51: 2.164 | D51: 28 | E51: 47.60 | F51: -0.00 | G51: =F51/Sresidus -> -1.0 | J51: Uarduino (10mV) | K51: =10/K40 -> 0.50 | L51: °C
A52: 48.2 | B52: 3842 | C52: 2.192 | D52: 28 | E52: 48.20 | F52: -0.00 | G52: =F52/Sresidus -> -0.9 | J52: Uctn | K52: =0.25+0.01*ABS(K49-25) -> 0.26 | L52: °C
A53: 48.8 | B53: 3755 | C53: 2.220 | D53: 28 | E53: 48.80 | F53: -0.00 | G53: =F53/Sresidus -> -0.7 | J53: Utotal | K53: =SQRT(K50^2+K51^2+K52^2) -> 0.6 | L53: °C
A54: 49.4 | B54: 3671 | C54: 2.249 | D54: 28 | E54: 49.40 | F54: -0.00 | G54: =F54/Sresidus -> -0.6
A55: 50 | B55: 3588 | C55: 2.277 | D55: 28 | E55: 50.00 | F55: -0.00 | G55: =F55/Sresidus -> -0.5
A56: 50.6 | B56: 3508 | C56: 2.305 | D56: 28 | E56: 50.60 | F56: -0.00 | G56: =F56/Sresidus -> -0.3
A57: 51.2 | B57: 3430 | C57: 2.333 | D57: 28 | E57: 51.20 | F57: -0.00 | G57: =F57/Sresidus -> -0.2 | J57: Classe | K57: Résidus Normalisés
A58: 51.8 | B58: 3353 | C58: 2.361 | D58: 28 | E58: 51.80 | F58: -0.00 | G58: =F58/Sresidus -> -0.0 | J58: -4s | K58: -4 | L58: =FREQUENCY(G5:G105,K58:K65) -> 0
A59: 52.4 | B59: 3279 | C59: 2.389 | D59: 28 | E59: 52.40 | F59: 0.00 | G59: =F59/Sresidus -> 0.1 | J59: -3s | K59: -3 | L59: 0
A60: 53 | B60: 3207 | C60: 2.417 | D60: 28 | E60: 53.00 | F60: 0.00 | G60: =F60/Sresidus -> 0.3 | J60: -2s | K60: -2 | L60: 3
A61: 53.6 | B61: 3136 | C61: 2.445 | D61: 28 | E61: 53.60 | F61: 0.00 | G61: =F61/Sresidus -> 0.4 | J61: -s | K61: -1 | L61: 12
A62: 54.2 | B62: 3067 | C62: 2.472 | D62: 28 | E62: 54.20 | F62: 0.00 | G62: =F62/Sresidus -> 0.5 | J62: moyenne | K62: 0 | L62: 37
A63: 54.8 | B63: 3000 | C63: 2.500 | D63: 28 | E63: 54.80 | F63: 0.00 | G63: =F63/Sresidus -> 0.6 | J63: s | K63: 1 | L63: 38
A64: 55.4 | B64: 2935 | C64: 2.527 | D64: 27 | E64: 55.40 | F64: 0.00 | G64: =F64/Sresidus -> 0.7 | J64: 2s | K64: 2 | L64: 9
A65: 56 | B65: 2871 | C65: 2.555 | D65: 27 | E65: 56.00 | F65: 0.00 | G65: =F65/Sresidus -> 0.8 | J65: 3s | K65: 3 | L65: 1
A66: 56.6 | B66: 2809 | C66: 2.582 | D66: 27 | E66: 56.60 | F66: 0.00 | G66: =F66/Sresidus -> 0.9 | J66: 4s | K66: 4 | L66: 1
A67: 57.2 | B67: 2749 | C67: 2.609 | D67: 27 | E67: 57.20 | F67: 0.00 | G67: =F67/Sresidus -> 0.9
A68: 57.8 | B68: 2690 | C68: 2.636 | D68: 27 | E68: 57.80 | F68: 0.00 | G68: =F68/Sresidus -> 0.9
A69: 58.4 | B69: =Res*EXP(B*(1/(A69+273.15)-1/(teta+273.15))) -> 2633 | C69: =Rdiv/(Rdiv+B69)*5 -> 2.663 | D69: 27 | E69: =a5_*C69^5 + a4_*C69^4 +a3_*C69^3 +a2_*C69^2 +a1_*C69+a0_ -> 58.40 | F69: 0.00 | G69: =F69/Sresidus -> 0.9
A70: =A69+(Tmax-Tmin)/100 -> 59 | B70: 2577 | C70: 2.690 | D70: 27 | E70: 59.00 | F70: =E70-A70 -> 0.00 | G70: =F70/Sresidus -> 0.8
A71: 59.6 | B71: 2522 | C71: 2.716 | D71: =(C71-C70)*1000 -> 27 | E71: 59.60 | F71: 0.00 | G71: =F71/Sresidus -> 0.8
A72: 60.2 | B72: 2469 | C72: 2.743 | D72: 26 | E72: 60.20 | F72: 0.00 | G72: =F72/Sresidus -> 0.7
A73: 60.8 | B73: 2417 | C73: 2.769 | D73: 26 | E73: 60.80 | F73: 0.00 | G73: =F73/Sresidus -> 0.6
A74: 61.4 | B74: 2366 | C74: 2.795 | D74: 26 | E74: 61.40 | F74: 0.00 | G74: =F74/Sresidus -> 0.5
A75: 62 | B75: 2316 | C75: 2.821 | D75: 26 | E75: 62.00 | F75: 0.00 | G75: =F75/Sresidus -> 0.4
A76: 62.6 | B76: 2268 | C76: 2.847 | D76: 26 | E76: 62.60 | F76: 0.00 | G76: =F76/Sresidus -> 0.3
A77: 63.2 | B77: 2221 | C77: 2.873 | D77: 26 | E77: 63.20 | F77: 0.00 | G77: =F77/Sresidus -> 0.2
A78: 63.8 | B78: 2175 | C78: 2.899 | D78: 26 | E78: 63.80 | F78: 0.00 | G78: =F78/Sresidus -> 0.1
A79: 64.4 | B79: 2130 | C79: 2.924 | D79: 25 | E79: 64.40 | F79: -0.00 | G79: =F79/Sresidus -> -0.1
A80: 65 | B80: 2086 | C80: 2.949 | D80: 25 | E80: 65.00 | F80: -0.00 | G80: =F80/Sresidus -> -0.2
A81: 65.6 | B81: 2044 | C81: 2.974 | D81: 25 | E81: 65.60 | F81: -0.00 | G81: =F81/Sresidus -> -0.3
A82: 66.2 | B82: 2002 | C82: 2.999 | D82: 25 | E82: 66.20 | F82: -0.00 | G82: =F82/Sresidus -> -0.4
A83: 66.8 | B83: 1961 | C83: 3.023 | D83: 25 | E83: 66.80 | F83: -0.00 | G83: =F83/Sresidus -> -0.5
A84: 67.4 | B84: 1921 | C84: 3.048 | D84: 24 | E84: 67.40 | F84: -0.00 | G84: =F84/Sresidus -> -0.6
A85: 68 | B85: 1883 | C85: 3.072 | D85: 24 | E85: 68.00 | F85: -0.00 | G85: =F85/Sresidus -> -0.6
A86: 68.6 | B86: 1845 | C86: 3.096 | D86: 24 | E86: 68.60 | F86: -0.00 | G86: =F86/Sresidus -> -0.7
A87: 69.2 | B87: 1808 | C87: 3.120 | D87: 24 | E87: 69.20 | F87: -0.00 | G87: =F87/Sresidus -> -0.7
A88: 69.8 | B88: 1772 | C88: 3.144 | D88: 24 | E88: 69.80 | F88: -0.00 | G88: =F88/Sresidus -> -0.7
A89: 70.4 | B89: 1736 | C89: 3.167 | D89: 23 | E89: 70.40 | F89: -0.00 | G89: =F89/Sresidus -> -0.6
A90: 71 | B90: 1702 | C90: 3.190 | D90: 23 | E90: 71.00 | F90: -0.00 | G90: =F90/Sresidus -> -0.6
A91: 71.6 | B91: 1668 | C91: 3.213 | D91: 23 | E91: 71.60 | F91: -0.00 | G91: =F91/Sresidus -> -0.5
A92: 72.2 | B92: 1635 | C92: 3.236 | D92: 23 | E92: 72.20 | F92: -0.00 | G92: =F92/Sresidus -> -0.4
A93: 72.8 | B93: 1603 | C93: 3.259 | D93: 23 | E93: 72.80 | F93: -0.00 | G93: =F93/Sresidus -> -0.3
A94: 73.4 | B94: 1572 | C94: 3.281 | D94: 22 | E94: 73.40 | F94: -0.00 | G94: =F94/Sresidus -> -0.1
A95: 74 | B95: 1541 | C95: 3.303 | D95: 22 | E95: 74.00 | F95: -0.00 | G95: =F95/Sresidus -> -0.0
A96: 74.6 | B96: 1511 | C96: 3.325 | D96: 22 | E96: 74.60 | F96: 0.00 | G96: =F96/Sresidus -> 0.1
A97: 75.2 | B97: 1482 | C97: 3.347 | D97: 22 | E97: 75.20 | F97: 0.00 | G97: =F97/Sresidus -> 0.3
A98: 75.8 | B98: 1453 | C98: 3.368 | D98: 22 | E98: 75.80 | F98: 0.00 | G98: =F98/Sresidus -> 0.4
A99: 76.4 | B99: 1425 | C99: 3.390 | D99: 21 | E99: 76.40 | F99: 0.00 | G99: =F99/Sresidus -> 0.4
A100: 77 | B100: 1398 | C100: 3.411 | D100: 21 | E100: 77.00 | F100: 0.00 | G100: =F100/Sresidus -> 0.5
A101: 77.6 | B101: =Res*EXP(B*(1/(A101+273.15)-1/(teta+273.15))) -> 1371 | C101: =Rdiv/(Rdiv+B101)*5 -> 3.431 | D101: 21 | E101: 77.60 | F101: 0.00 | G101: =F101/Sresidus -> 0.5
A102: 78.2 | B102: =Res*EXP(B*(1/(A102+273.15)-1/(teta+273.15))) -> 1345 | C102: =Rdiv/(Rdiv+B102)*5 -> 3.452 | D102: 21 | E102: 78.20 | F102: 0.00 | G102: =F102/Sresidus -> 0.4
A103: 78.8 | B103: =Res*EXP(B*(1/(A103+273.15)-1/(teta+273.15))) -> 1320 | C103: =Rdiv/(Rdiv+B103)*5 -> 3.472 | D103: 20 | E103: 78.80 | F103: 0.00 | G103: =F103/Sresidus -> 0.2
A104: 79.4 | B104: =Res*EXP(B*(1/(A104+273.15)-1/(teta+273.15))) -> 1295 | C104: =Rdiv/(Rdiv+B104)*5 -> 3.493 | D104: 20 | E104: 79.40 | F104: -0.00 | G104: =F104/Sresidus -> -0.0
A105: 80 | B105: =Res*EXP(B*(1/(A105+273.15)-1/(teta+273.15))) -> 1270 | C105: =Rdiv/(Rdiv+B105)*5 -> 3.513 | D105: 20 | E105: 80.00 | F105: -0.00 | G105: =F105/Sresidus -> -0.4

Sheet Feuil2

Sheet Feuil3
